[Event "Late-Titled-Tuesday-Blitz-January-23-2024"]
[Site "Chess.com"]
[Date "2024.01.23"]
[Round "10"]
[White "Walter_White_Poland"]
[Black "Horokoskii"]
[Result "1-0"]
[WhiteElo "2313"]
[BlackElo "2084"]
[TimeControl "180+1"]
[EndTime "15:54:23 PST"]
[Termination "Walter_White_Poland won by checkmate"]

1. e4 {[%clk 0:03:00.9]} 1... d6 {[%clk 0:02:56.6]} 2. d4 {[%clk 0:03:00.3]}
2... Nf6 {[%clk 0:02:57]} 3. Nc3 {[%clk 0:03:00.4]} 3... g6 {[%clk 0:02:57.7]}
4. h3 {[%clk 0:03:00]} 4... Bg7 {[%clk 0:02:58.3]} 5. Nf3 {[%clk 0:03:00.6]}
5... c6 {[%clk 0:02:56]} 6. a4 {[%clk 0:02:59.2]} 6... b6 {[%clk 0:02:43.1]} 7.
Be3 {[%clk 0:02:58.1]} 7... Bb7 {[%clk 0:02:42.6]} 8. Bc4 {[%clk 0:02:38.3]}
8... d5 {[%clk 0:02:25.6]} 9. exd5 {[%clk 0:02:34.1]} 9... cxd5 {[%clk
0:02:25.6]} 10. Bb5+ {[%clk 0:02:32.5]} 10... Bc6 {[%clk 0:02:22.8]} 11. Qd2
{[%clk 0:02:20.7]} 11... O-O {[%clk 0:02:05.7]} 12. Bh6 {[%clk 0:02:20]} 12...
Ne4 {[%clk 0:01:52.6]} 13. Nxe4 {[%clk 0:02:18.7]} 13... dxe4 {[%clk 0:01:52.6]}
14. Bxg7 {[%clk 0:02:18.9]} 14... Kxg7 {[%clk 0:01:45.2]} 15. Ne5 {[%clk
0:02:14.9]} 15... Bxb5 {[%clk 0:01:40.8]} 16. axb5 {[%clk 0:02:15.8]} 16... Nd7
{[%clk 0:01:40.3]} 17. Nc6 {[%clk 0:02:09.7]} 17... Qc7 {[%clk 0:01:31.2]} 18.
O-O {[%clk 0:01:59]} 18... e5 {[%clk 0:01:13.4]} 19. d5 {[%clk 0:01:51.5]} 19...
Nc5 {[%clk 0:00:43.7]} 20. d6 {[%clk 0:01:44.3]} 20... Qd7 {[%clk 0:00:43.5]}
21. b4 {[%clk 0:01:43.1]} 21... Ne6 {[%clk 0:00:38]} 22. c4 {[%clk 0:01:39.5]}
22... f6 {[%clk 0:00:31.1]} 23. Qd5 {[%clk 0:01:30.5]} 23... Rfc8 {[%clk
0:00:19.6]} 24. g3 {[%clk 0:01:22.5]} 24... a6 {[%clk 0:00:20]} 25. Qxe4 {[%clk
0:01:01.6]} 25... axb5 {[%clk 0:00:15.7]} 26. Rxa8 {[%clk 0:00:58.7]} 26... Rxa8
{[%clk 0:00:16.6]} 27. Nxe5 {[%clk 0:00:54.9]} 27... Qd8 {[%clk 0:00:11.9]} 28.
Nxg6 {[%clk 0:00:46]} 28... hxg6 {[%clk 0:00:06.6]} 29. Qxe6 {[%clk 0:00:45.7]}
29... bxc4 {[%clk 0:00:06.6]} 30. b5 {[%clk 0:00:42.4]} 30... c3 {[%clk
0:00:05.3]} 31. Rc1 {[%clk 0:00:41.4]} 31... Rc8 {[%clk 0:00:03.9]} 32. d7
{[%clk 0:00:29.1]} 32... Rc7 {[%clk 0:00:04.2]} 33. Qe8 {[%clk 0:00:21.1]} 33...
Qxd7 {[%clk 0:00:03]} 34. Qxd7+ {[%clk 0:00:21]} 34... Rxd7 {[%clk 0:00:03.9]}
35. Rxc3 {[%clk 0:00:20]} 35... Rd5 {[%clk 0:00:04.3]} 36. Rb3 {[%clk 0:00:17]}
36... Rc5 {[%clk 0:00:04.5]} 37. Rb4 {[%clk 0:00:17.1]} 37... Kf7 {[%clk
0:00:04.7]} 38. Kg2 {[%clk 0:00:18]} 38... Ke6 {[%clk 0:00:05.4]} 39. h4 {[%clk
0:00:18.2]} 39... f5 {[%clk 0:00:04.4]} 40. Kf3 {[%clk 0:00:16.5]} 40... Kf6
{[%clk 0:00:05]} 41. Kf4 {[%clk 0:00:15.5]} 41... Rd5 {[%clk 0:00:04.7]} 42. f3
{[%clk 0:00:12.8]} 42... Rc5 {[%clk 0:00:04.7]} 43. g4 {[%clk 0:00:12.7]} 43...
fxg4 {[%clk 0:00:04.6]} 44. fxg4 {[%clk 0:00:13.6]} 44... Rd5 {[%clk 0:00:05.2]}
45. g5+ {[%clk 0:00:13.3]} 45... Kg7 {[%clk 0:00:05.1]} 46. Kg4 {[%clk
0:00:13.4]} 46... Rc5 {[%clk 0:00:05.2]} 47. Kf4 {[%clk 0:00:13.4]} 47... Rd5
{[%clk 0:00:05.6]} 48. Ke4 {[%clk 0:00:13.4]} 48... Rc5 {[%clk 0:00:06.5]} 49.
Kd4 {[%clk 0:00:11.5]} 49... Rf5 {[%clk 0:00:06.2]} 50. Kc3 {[%clk 0:00:10.9]}
50... Rf3+ {[%clk 0:00:05.9]} 51. Kc4 {[%clk 0:00:10.5]} 51... Rf4+ {[%clk
0:00:06.3]} 52. Kc3 {[%clk 0:00:09.7]} 52... Rf3+ {[%clk 0:00:06.8]} 53. Kd2
{[%clk 0:00:10.2]} 53... Rf2+ {[%clk 0:00:05.1]} 54. Ke3 {[%clk 0:00:10]} 54...
Rf5 {[%clk 0:00:06]} 55. Ke4 {[%clk 0:00:09.6]} 55... Rc5 {[%clk 0:00:04.9]} 56.
Rd4 {[%clk 0:00:09]} 56... Rxb5 {[%clk 0:00:04.8]} 57. Rd7+ {[%clk 0:00:09.5]}
57... Kg8 {[%clk 0:00:04.6]} 58. Rb7 {[%clk 0:00:10.1]} 58... Rb4+ {[%clk
0:00:03.1]} 59. Ke5 {[%clk 0:00:10.1]} 59... Rxh4 {[%clk 0:00:03.5]} 60. Kf6
{[%clk 0:00:10.2]} 60... Rf4+ {[%clk 0:00:01.2]} 61. Kxg6 {[%clk 0:00:10.2]}
61... Kf8 {[%clk 0:00:01.8]} 62. Rb8+ {[%clk 0:00:08.5]} 62... Ke7 {[%clk
0:00:01.8]} 63. Rxb6 {[%clk 0:00:08.9]} 63... Re4 {[%clk 0:00:01.4]} 64. Kg7
{[%clk 0:00:07.8]} 64... Rh4 {[%clk 0:00:01.8]} 65. g6 {[%clk 0:00:07.9]} 65...
Rg4 {[%clk 0:00:01.9]} 66. Rb1 {[%clk 0:00:07.4]} 66... Rh4 {[%clk 0:00:02.3]}
67. Re1+ {[%clk 0:00:07.1]} 67... Kd6 {[%clk 0:00:02.4]} 68. Kf7 {[%clk
0:00:06.8]} 68... Rf4+ {[%clk 0:00:02.9]} 69. Kg8 {[%clk 0:00:07]} 69... Kd7
{[%clk 0:00:02.5]} 70. g7 {[%clk 0:00:07.3]} 70... Rg4 {[%clk 0:00:02.9]} 71.
Re3 {[%clk 0:00:05.1]} 71... Rg2 {[%clk 0:00:03]} 72. Re4 {[%clk 0:00:03.4]}
72... Rh2 {[%clk 0:00:02.9]} 73. Kf7 {[%clk 0:00:03.8]} 73... Rg2 {[%clk
0:00:03.4]} 74. g8=Q {[%clk 0:00:02.8]} 74... Rf2+ {[%clk 0:00:04.3]} 75. Kg7
{[%clk 0:00:02]} 75... Rg2+ {[%clk 0:00:05.2]} 76. Kf8 {[%clk 0:00:02.7]} 76...
Rf2+ {[%clk 0:00:05.7]} 77. Qf7+ {[%clk 0:00:03.5]} 77... Rxf7+ {[%clk
0:00:05.8]} 78. Kxf7 {[%clk 0:00:04.4]} 78... Kd6 {[%clk 0:00:06.5]} 79. Kf6
{[%clk 0:00:04.5]} 79... Kd5 {[%clk 0:00:07.4]} 80. Re5+ {[%clk 0:00:04.9]}
80... Kd4 {[%clk 0:00:08]} 81. Kf5 {[%clk 0:00:05.8]} 81... Kd3 {[%clk
0:00:08.5]} 82. Re4 {[%clk 0:00:06]} 82... Kc3 {[%clk 0:00:08.8]} 83. Kf4 {[%clk
0:00:06.3]} 83... Kd3 {[%clk 0:00:09.7]} 84. Kf3 {[%clk 0:00:06.3]} 84... Kc3
{[%clk 0:00:10]} 85. Ke3 {[%clk 0:00:06.4]} 85... Kc2 {[%clk 0:00:10]} 86. Rc4+
{[%clk 0:00:06.3]} 86... Kb3 {[%clk 0:00:10.9]} 87. Kd3 {[%clk 0:00:05.8]} 87...
Ka3 {[%clk 0:00:10.9]} 88. Kc3 {[%clk 0:00:05.7]} 88... Ka2 {[%clk 0:00:11.8]}
89. Ra4+ {[%clk 0:00:05.6]} 89... Kb1 {[%clk 0:00:11.9]} 90. Ra7 {[%clk
0:00:06.3]} 90... Kc1 {[%clk 0:00:12.3]} 91. Ra1# {[%clk 0:00:06.6]} 1-0

[Event "Late-Titled-Tuesday-Blitz-January-23-2024"]
[Site "Chess.com"]
[Date "2024.01.23"]
[Round "10"]
[White "cristiano78"]
[Black "Atousa"]
[Result "1/2-1/2"]
[WhiteElo "2243"]
[BlackElo "2456"]
[TimeControl "180+1"]
[EndTime "15:54:54 PST"]
[Termination "Game drawn by repetition"]

1. d4 {[%clk 0:03:00.9]} 1... Nf6 {[%clk 0:02:57]} 2. c4 {[%clk 0:02:59.9]} 2...
e6 {[%clk 0:02:57.2]} 3. Nf3 {[%clk 0:02:59.5]} 3... d5 {[%clk 0:02:57.7]} 4.
Nc3 {[%clk 0:02:57.9]} 4... Be7 {[%clk 0:02:57.4]} 5. Bg5 {[%clk 0:02:58.1]}
5... O-O {[%clk 0:02:57.5]} 6. e3 {[%clk 0:02:58]} 6... Nbd7 {[%clk 0:02:56.8]}
7. c5 {[%clk 0:02:57.7]} 7... c6 {[%clk 0:02:57.3]} 8. Be2 {[%clk 0:02:56.6]}
8... Ne4 {[%clk 0:02:50.9]} 9. Bxe7 {[%clk 0:02:55.8]} 9... Qxe7 {[%clk
0:02:51.1]} 10. Rc1 {[%clk 0:02:51.8]} 10... Nxc3 {[%clk 0:02:50.5]} 11. Rxc3
{[%clk 0:02:50.4]} 11... e5 {[%clk 0:02:51.2]} 12. O-O {[%clk 0:02:45.7]} 12...
e4 {[%clk 0:02:50.9]} 13. Nd2 {[%clk 0:02:43.8]} 13... Nf6 {[%clk 0:02:50.2]}
14. b4 {[%clk 0:02:42]} 14... a6 {[%clk 0:02:49.8]} 15. a4 {[%clk 0:02:41.6]}
15... h5 {[%clk 0:02:46.5]} 16. Bxh5 {[%clk 0:02:35]} 16... g6 {[%clk
0:02:46.7]} 17. Be2 {[%clk 0:02:34.6]} 17... Kg7 {[%clk 0:02:47.3]} 18. f4
{[%clk 0:02:32]} 18... exf3 {[%clk 0:02:44.9]} 19. Bxf3 {[%clk 0:02:32.1]} 19...
Rh8 {[%clk 0:02:42.5]} 20. Qe1 {[%clk 0:02:24.6]} 20... Qc7 {[%clk 0:02:34.6]}
21. Qg3 {[%clk 0:02:20.2]} 21... Qxg3 {[%clk 0:02:34.2]} 22. hxg3 {[%clk
0:02:20.2]} 22... Bf5 {[%clk 0:02:34.7]} 23. Ra1 {[%clk 0:02:17.7]} 23... Rhe8
{[%clk 0:02:32]} 24. Kf2 {[%clk 0:02:17.4]} 24... g5 {[%clk 0:02:28.8]} 25. Rca3
{[%clk 0:02:12.4]} 25... Bd7 {[%clk 0:02:05.9]} 26. Be2 {[%clk 0:02:08.1]} 26...
Ng8 {[%clk 0:01:38.4]} 27. b5 {[%clk 0:02:05.5]} 27... axb5 {[%clk 0:01:38.6]}
28. axb5 {[%clk 0:02:05.1]} 28... Rxa3 {[%clk 0:01:39.5]} 29. Rxa3 {[%clk
0:02:04.2]} 29... cxb5 {[%clk 0:01:40.4]} 30. Rb3 {[%clk 0:02:00.9]} 30... Ne7
{[%clk 0:01:25.4]} 31. Bxb5 {[%clk 0:01:58.9]} 31... Bc6 {[%clk 0:01:20.5]} 32.
Be2 {[%clk 0:01:52.2]} 32... Nf5 {[%clk 0:01:11.7]} 33. Nf3 {[%clk 0:01:50.5]}
33... f6 {[%clk 0:01:07.6]} 34. g4 {[%clk 0:01:47.1]} 34... Ne7 {[%clk
0:00:56.2]} 35. Bd3 {[%clk 0:01:40.8]} 35... Ra8 {[%clk 0:00:54.9]} 36. Rb1
{[%clk 0:01:15.5]} 36... Ra2+ {[%clk 0:00:53.1]} 37. Kg3 {[%clk 0:01:06.4]}
37... Ra3 {[%clk 0:00:50.6]} 38. Bc2 {[%clk 0:00:56.1]} 38... Rxe3 {[%clk
0:00:47.9]} 39. Rh1 {[%clk 0:00:55]} 39... Ng6 {[%clk 0:00:43.6]} 40. Bf5 {[%clk
0:00:44.1]} 40... Rb3 {[%clk 0:00:33.7]} 41. Ra1 {[%clk 0:00:37.9]} 41... Bb5
{[%clk 0:00:31.9]} 42. Ra7 {[%clk 0:00:23.7]} 42... Be2 {[%clk 0:00:29]} 43. c6
{[%clk 0:00:21.1]} 43... Ne7 {[%clk 0:00:14.2]} 44. cxb7 {[%clk 0:00:17]} 44...
Kf7 {[%clk 0:00:12.7]} 45. Bc8 {[%clk 0:00:09.2]} 45... Bf1 {[%clk 0:00:11]} 46.
Kh2 {[%clk 0:00:04.6]} 46... Rb2 {[%clk 0:00:10.7]} 47. Ne1 {[%clk 0:00:04.4]}
47... Be2 {[%clk 0:00:09.7]} 48. Ra8 {[%clk 0:00:03.4]} 48... Nc6 {[%clk
0:00:09.4]} 49. Bd7 {[%clk 0:00:02.2]} 49... Rxb7 {[%clk 0:00:06.3]} 50. Bxc6
{[%clk 0:00:01.9]} 50... Rb1 {[%clk 0:00:05.3]} 51. Bxd5+ {[%clk 0:00:02.5]}
51... Ke7 {[%clk 0:00:05.5]} 52. Bf3 {[%clk 0:00:02.9]} 52... Rxe1 {[%clk
0:00:05]} 53. Bxe2 {[%clk 0:00:03.1]} 53... Rxe2 {[%clk 0:00:05.9]} 54. Ra7+
{[%clk 0:00:03.6]} 54... Kd6 {[%clk 0:00:05.8]} 55. Ra3 {[%clk 0:00:04.2]} 55...
Kd5 {[%clk 0:00:05.9]} 56. Rf3 {[%clk 0:00:04.9]} 56... Re6 {[%clk 0:00:06.1]}
57. Rf5+ {[%clk 0:00:05]} 57... Kxd4 {[%clk 0:00:06.3]} 58. Rf3 {[%clk
0:00:05.2]} 58... Ke4 {[%clk 0:00:06.2]} 59. Kg3 {[%clk 0:00:05.5]} 59... Rc6
{[%clk 0:00:05.9]} 60. Kf2 {[%clk 0:00:05.6]} 60... Rc2+ {[%clk 0:00:05.1]} 61.
Kg3 {[%clk 0:00:06.2]} 61... Rc6 {[%clk 0:00:05.3]} 62. Kf2 {[%clk 0:00:05.2]}
62... Ke5 {[%clk 0:00:05.9]} 63. Kg3 {[%clk 0:00:05.8]} 63... Ke6 {[%clk
0:00:06.5]} 64. Re3+ {[%clk 0:00:06.1]} 64... Kf7 {[%clk 0:00:07.1]} 65. Kf3
{[%clk 0:00:06.7]} 65... Kg6 {[%clk 0:00:07.7]} 66. g3 {[%clk 0:00:07.3]} 66...
Rc4 {[%clk 0:00:08.2]} 67. Rd3 {[%clk 0:00:07.2]} 67... Rc1 {[%clk 0:00:08.7]}
68. Re3 {[%clk 0:00:07.7]} 68... Rf1+ {[%clk 0:00:08.8]} 69. Kg2 {[%clk
0:00:08.3]} 69... Ra1 {[%clk 0:00:09.3]} 70. Kf3 {[%clk 0:00:09]} 70... Ra4
{[%clk 0:00:09.7]} 71. Re4 {[%clk 0:00:09.1]} 71... Ra3+ {[%clk 0:00:09.5]} 72.
Re3 {[%clk 0:00:09.6]} 72... Ra1 {[%clk 0:00:10.3]} 73. Re4 {[%clk 0:00:09.7]}
73... Kf7 {[%clk 0:00:10.8]} 74. Ke3 {[%clk 0:00:09.9]} 74... Ra7 {[%clk
0:00:11.4]} 75. Kf3 {[%clk 0:00:10.5]} 75... Rd7 {[%clk 0:00:11.8]} 76. Re3
{[%clk 0:00:11.1]} 76... Rd6 {[%clk 0:00:12.1]} 77. Ke2 {[%clk 0:00:11.8]} 77...
Rd5 {[%clk 0:00:12.4]} 78. Kf3 {[%clk 0:00:12.7]} 78... Rd4 {[%clk 0:00:13]} 79.
Re4 {[%clk 0:00:13.1]} 79... Rd3+ {[%clk 0:00:13.3]} 80. Re3 {[%clk 0:00:13.5]}
80... Rd2 {[%clk 0:00:14]} 81. Re2 {[%clk 0:00:13.7]} 81... Rd1 {[%clk
0:00:14.7]} 82. Re3 {[%clk 0:00:14]} 82... Rf1+ {[%clk 0:00:15]} 83. Kg2 {[%clk
0:00:14.6]} 83... Rb1 {[%clk 0:00:14.7]} 84. Kf3 {[%clk 0:00:14.9]} 84... Rb4
{[%clk 0:00:14.6]} 85. Re4 {[%clk 0:00:15.3]} 85... Rb3+ {[%clk 0:00:14.3]} 86.
Re3 {[%clk 0:00:16]} 86... Rb2 {[%clk 0:00:14.8]} 87. Re2 {[%clk 0:00:16.5]}
87... Rxe2 {[%clk 0:00:13.6]} 88. Kxe2 {[%clk 0:00:16.3]} 88... Ke6 {[%clk
0:00:13.6]} 89. Kd3 {[%clk 0:00:16.4]} 89... Kd5 {[%clk 0:00:13.7]} 90. Ke3
{[%clk 0:00:15.3]} 90... Ke5 {[%clk 0:00:14.3]} 91. Kd3 {[%clk 0:00:15.2]} 91...
f5 {[%clk 0:00:14.2]} 92. gxf5 {[%clk 0:00:15.6]} 92... Kxf5 {[%clk 0:00:15.1]}
93. Ke3 {[%clk 0:00:15.9]} 93... Kg4 {[%clk 0:00:15.7]} 94. Kf2 {[%clk
0:00:16.5]} 94... Kh3 {[%clk 0:00:14.3]} 95. g4 {[%clk 0:00:15.5]} 95... Kxg4
{[%clk 0:00:14.2]} 96. Kg2 {[%clk 0:00:16.2]} 96... Kf4 {[%clk 0:00:14.3]} 97.
Kf2 {[%clk 0:00:16.6]} 97... Kg4 {[%clk 0:00:14.4]} 98. Kg2 {[%clk 0:00:16.9]}
98... Kh4 {[%clk 0:00:15.1]} 99. Kh2 {[%clk 0:00:17.1]} 99... g4 {[%clk
0:00:15.7]} 100. Kg2 {[%clk 0:00:17.3]} 100... g3 {[%clk 0:00:16.3]} 101. Kg1
{[%clk 0:00:17.5]} 101... Kh3 {[%clk 0:00:16.8]} 102. Kh1 {[%clk 0:00:17.6]}
102... Kg4 {[%clk 0:00:17.6]} 103. Kg2 {[%clk 0:00:17.2]} 103... Kf4 {[%clk
0:00:18.4]} 104. Kg1 {[%clk 0:00:17.5]} 104... Kf3 {[%clk 0:00:19.1]} 105. Kf1
{[%clk 0:00:17.8]} 105... Ke3 {[%clk 0:00:19.3]} 106. Kg2 {[%clk 0:00:17.9]}
106... Kf4 {[%clk 0:00:20.2]} 107. Kg1 {[%clk 0:00:18]} 107... Kf3 {[%clk
0:00:21.1]} 108. Kf1 {[%clk 0:00:17.8]} 108... Kg4 {[%clk 0:00:22]} 109. Kg2
{[%clk 0:00:17.9]} 109... Kf4 {[%clk 0:00:21.8]} 1/2-1/2

[Event "Late-Titled-Tuesday-Blitz-January-23-2024"]
[Site "Chess.com"]
[Date "2024.01.23"]
[Round "10"]
[White "Teidi96"]
[Black "maximnovik"]
[Result "0-1"]
[WhiteElo "2429"]
[BlackElo "2585"]
[TimeControl "180+1"]
[EndTime "15:54:58 PST"]
[Termination "maximnovik won by resignation"]

1. e4 {[%clk 0:03:00.9]} 1... c6 {[%clk 0:02:59.9]} 2. d4 {[%clk 0:03:00.6]}
2... d5 {[%clk 0:03:00.8]} 3. exd5 {[%clk 0:03:01.5]} 3... cxd5 {[%clk 0:03:01]}
4. c4 {[%clk 0:03:02.1]} 4... Nf6 {[%clk 0:03:01]} 5. Nc3 {[%clk 0:03:02.7]}
5... g6 {[%clk 0:03:01.3]} 6. cxd5 {[%clk 0:03:02.4]} 6... Nxd5 {[%clk
0:03:01.2]} 7. Bc4 {[%clk 0:03:02.1]} 7... Nxc3 {[%clk 0:03:01.2]} 8. bxc3
{[%clk 0:03:03]} 8... Bg7 {[%clk 0:03:01.3]} 9. Ne2 {[%clk 0:02:59.7]} 9... O-O
{[%clk 0:02:59.7]} 10. O-O {[%clk 0:02:58]} 10... Nc6 {[%clk 0:02:59.7]} 11. Bf4
{[%clk 0:02:56.2]} 11... b6 {[%clk 0:02:58.3]} 12. Rc1 {[%clk 0:02:47.8]} 12...
Bb7 {[%clk 0:02:58.3]} 13. Qd2 {[%clk 0:02:43.2]} 13... Rc8 {[%clk 0:02:56.5]}
14. Bb3 {[%clk 0:02:40.2]} 14... Na5 {[%clk 0:02:49.2]} 15. Rfd1 {[%clk
0:02:34.8]} 15... Nxb3 {[%clk 0:02:44.8]} 16. axb3 {[%clk 0:02:34.6]} 16... Qd5
{[%clk 0:02:45]} 17. f3 {[%clk 0:02:27.7]} 17... Qxb3 {[%clk 0:02:44.1]} 18. Ra1
{[%clk 0:02:16.6]} 18... Ra8 {[%clk 0:02:42.7]} 19. Rdb1 {[%clk 0:02:13.4]}
19... Qd5 {[%clk 0:02:40.2]} 20. Qd3 {[%clk 0:01:57.6]} 20... Rfc8 {[%clk
0:02:39.1]} 21. Rb5 {[%clk 0:01:52.7]} 21... Qd7 {[%clk 0:02:36.9]} 22. c4
{[%clk 0:01:48.6]} 22... Bc6 {[%clk 0:02:26.5]} 23. Rb3 {[%clk 0:01:40.5]} 23...
e6 {[%clk 0:02:22.8]} 24. Be3 {[%clk 0:01:31.1]} 24... Rd8 {[%clk 0:02:10]} 25.
Rba3 {[%clk 0:01:25.5]} 25... b5 {[%clk 0:02:00.3]} 26. cxb5 {[%clk 0:01:06.3]}
26... Bxb5 {[%clk 0:02:00.2]} 27. Qd2 {[%clk 0:01:06.8]} 27... Bxe2 {[%clk
0:01:58.5]} 28. Qxe2 {[%clk 0:01:07]} 28... Bxd4 {[%clk 0:01:57]} 29. Bxd4
{[%clk 0:01:03.6]} 29... Qxd4+ {[%clk 0:01:56.7]} 30. Qf2 {[%clk 0:01:00.6]}
30... Qxf2+ {[%clk 0:01:39]} 31. Kxf2 {[%clk 0:01:01.5]} 31... Rd2+ {[%clk
0:01:38.6]} 32. Kg3 {[%clk 0:01:00.5]} 32... Rd7 {[%clk 0:01:31.8]} 33. Kf4
{[%clk 0:00:56.3]} 33... Kg7 {[%clk 0:01:30.9]} 34. h4 {[%clk 0:00:56.5]} 34...
h5 {[%clk 0:01:30.6]} 35. Ra6 {[%clk 0:00:53.4]} 35... Kf6 {[%clk 0:01:28.3]}
36. R1a4 {[%clk 0:00:51]} 36... Kg7 {[%clk 0:01:17.4]} 37. Ke5 {[%clk
0:00:47.6]} 37... Rd5+ {[%clk 0:01:13.8]} 38. Ke4 {[%clk 0:00:47.6]} 38... Rd2
{[%clk 0:01:10.9]} 39. g3 {[%clk 0:00:43]} 39... Re2+ {[%clk 0:01:03]} 40. Kd3
{[%clk 0:00:38.7]} 40... Rg2 {[%clk 0:01:02.5]} 41. g4 {[%clk 0:00:35.5]} 41...
hxg4 {[%clk 0:01:01.9]} 42. fxg4 {[%clk 0:00:34.6]} 42... Rh8 {[%clk 0:01:01.9]}
43. Rxa7 {[%clk 0:00:29.4]} 43... Rxh4 {[%clk 0:01:01.4]} 44. Rf4 {[%clk
0:00:30]} 44... Rg3+ {[%clk 0:00:48.4]} 45. Ke4 {[%clk 0:00:25]} 45... Rgxg4
{[%clk 0:00:43.7]} 46. Rxf7+ {[%clk 0:00:24.2]} 46... Kh6 {[%clk 0:00:43.7]} 47.
Rxg4 {[%clk 0:00:18.5]} 47... Rxg4+ {[%clk 0:00:43.5]} 48. Ke5 {[%clk
0:00:19.1]} 48... Kg5 {[%clk 0:00:40.5]} 49. Kxe6 {[%clk 0:00:17]} 49... Re4+
{[%clk 0:00:40.3]} 50. Kd5 {[%clk 0:00:17.2]} 50... Re1 {[%clk 0:00:38.3]} 51.
Rf2 {[%clk 0:00:15.3]} 51... Kh6 {[%clk 0:00:33]} 52. Rh2+ {[%clk 0:00:14.7]}
52... Kg7 {[%clk 0:00:32.3]} 53. Rg2 {[%clk 0:00:13.4]} 53... Kf6 {[%clk
0:00:32.1]} 54. Rf2+ {[%clk 0:00:13.4]} 54... Kg5 {[%clk 0:00:29.6]} 55. Rg2+
{[%clk 0:00:13.7]} 55... Kf5 {[%clk 0:00:29.9]} 56. Rf2+ {[%clk 0:00:13.6]}
56... Kg5 {[%clk 0:00:25.6]} 57. Rg2+ {[%clk 0:00:14.5]} 57... Kf6 {[%clk
0:00:24.8]} 58. Rf2+ {[%clk 0:00:14.4]} 58... Kg7 {[%clk 0:00:24.5]} 59. Rg2
{[%clk 0:00:14.6]} 59... Re3 {[%clk 0:00:23.6]} 60. Kd4 {[%clk 0:00:14.4]} 60...
Re7 {[%clk 0:00:22.7]} 61. Rg1 {[%clk 0:00:13.4]} 61... Re2 {[%clk 0:00:18]} 62.
Kd3 {[%clk 0:00:12.7]} 62... Re5 {[%clk 0:00:18]} 63. Kd4 {[%clk 0:00:13.2]}
63... Kf6 {[%clk 0:00:18.2]} 64. Rf1+ {[%clk 0:00:09.2]} 64... Rf5 {[%clk
0:00:18.3]} 65. Ra1 {[%clk 0:00:08.9]} 65... Kg5 {[%clk 0:00:17.1]} 66. Ke3
{[%clk 0:00:08.3]} 66... Kh6 {[%clk 0:00:12.5]} 67. Rh1+ {[%clk 0:00:07.3]}
67... Rh5 {[%clk 0:00:12.5]} 68. Ra1 {[%clk 0:00:06.6]} 68... Rf5 {[%clk
0:00:12.5]} 69. Rh1+ {[%clk 0:00:05.7]} 69... Kg7 {[%clk 0:00:12.6]} 70. Ra1
{[%clk 0:00:04.7]} 70... Kf6 {[%clk 0:00:12.8]} 71. Rg1 {[%clk 0:00:03.8]} 71...
g5 {[%clk 0:00:12.8]} 72. Rh1 {[%clk 0:00:02.9]} 72... Rf4 {[%clk 0:00:12.7]}
73. Rh6+ {[%clk 0:00:01.5]} 73... Kf5 {[%clk 0:00:12.9]} 74. Rh8 {[%clk
0:00:02.2]} 74... Kg4 {[%clk 0:00:13.1]} 75. Rh1 {[%clk 0:00:01.9]} 75... Rf3+
{[%clk 0:00:12.4]} 76. Ke2 {[%clk 0:00:01.9]} 76... Kf4 {[%clk 0:00:09.4]} 77.
Rg1 {[%clk 0:00:02.4]} 77... g4 {[%clk 0:00:09.4]} 78. Ra1 {[%clk 0:00:02.3]}
78... Kg3 {[%clk 0:00:07.9]} 79. Rg1+ {[%clk 0:00:02.2]} 79... Kh3 {[%clk
0:00:08]} 80. Rh1+ {[%clk 0:00:02]} 80... Kg2 {[%clk 0:00:08.2]} 81. Rh4 {[%clk
0:00:01.8]} 81... g3 {[%clk 0:00:08.4]} 82. Rg4 {[%clk 0:00:02]} 82... Rf7
{[%clk 0:00:08.1]} 83. Rg8 {[%clk 0:00:01.7]} 83... Re7+ {[%clk 0:00:07.9]} 84.
Kd2 {[%clk 0:00:01.6]} 84... Kf2 {[%clk 0:00:08.2]} 85. Rf8+ {[%clk 0:00:01.8]}
85... Kg1 {[%clk 0:00:08.4]} 86. Rg8 {[%clk 0:00:01.8]} 86... g2 {[%clk
0:00:08.6]} 87. Rg6 {[%clk 0:00:01.8]} 87... Re5 {[%clk 0:00:07.5]} 88. Rg7
{[%clk 0:00:02.1]} 88... Kh2 {[%clk 0:00:07.4]} 89. Rh7+ {[%clk 0:00:02.5]}
89... Kg3 {[%clk 0:00:07.5]} 90. Rg7+ {[%clk 0:00:03.1]} 90... Kh3 {[%clk
0:00:07.8]} 91. Rh7+ {[%clk 0:00:03.7]} 91... Kg4 {[%clk 0:00:07.4]} 92. Rg7+
{[%clk 0:00:04.1]} 92... Rg5 {[%clk 0:00:07.7]} 93. Rxg5+ {[%clk 0:00:04.1]} 0-1